bitfinex-derivatives/quotes_BNBF0:USTF0_20250424
["timestamp","ask_amount","ask_price","bid_price","bid_amount"]
[1745496863259,0.274485,603.2,596.52,0.0425026]
[1745496863459,0.274485,603.19,596.52,0.0425026]
[1745496863759,0.274485,603.18,596.52,0.0425026]
[1745496863964,0.274485,603.18,596.52,1.7295026]
[1745496864177,0.274485,603.17,596.52,1.7295026]
[1745496864362,0.274485,603.16,596.52,1.7295026]
[1745496864665,0.274485,603.15,596.52,1.7295026]
[1745496864967,0.29076811,603.26,596.52,1.7295026]
[1745496864968,1.27641359,597.15,596.52,1.7295026]
[1745496865360,1.27641359,597.15,596.52,1.687]
[1745496868372,1.27641359,597.17,596.52,1.687]
[1745496871173,1.27641359,597.72,596.52,1.687]
[1745496871470,0.27442354,597.71,596.52,1.687]
[1745496872172,1.27641359,597.72,596.52,1.687]
[1745496872372,0.27442729,597.71,596.53,0.67397719]
[1745496872672,0.27442729,597.71,596.54,0.67397719]
[1745496872871,0.27442729,597.71,596.55,0.67397719]
[1745496873167,0.27442729,597.71,596.56,0.67397719]
[1745496873371,0.27442729,597.71,596.57,0.67397719]
[1745496873672,0.27442729,597.71,596.58,0.67397719]
[1745496873870,0.27442729,597.71,596.59,0.67397719]
[1745496874070,1.55083718,597.7,596.6,0.67397719]
[1745496874270,0.27442359,597.69,596.61,0.67397719]
[1745496874467,0.27442359,597.69,596.62,0.67397719]
[1745496874689,0.27442359,597.69,596.63,0.67397719]
[1745496874868,0.27442359,597.69,596.52,1.687]
[1745496875070,0.27442359,597.69,596.53,0.67407133]
[1745496875268,0.27442359,597.69,596.54,0.67407133]
[1745496875472,0.27442359,597.69,596.55,0.67407133]
[1745496875839,0.27442359,597.69,596.56,0.67407133]
[1745496875973,0.27442359,597.69,596.57,0.67407133]
[1745496876175,0.27442359,597.69,596.58,0.67407133]
[1745496876375,1.27641359,597.58,596.59,0.67407133]
[1745496876576,0.27442359,597.57,596.6,0.67407133]
[1745496876771,0.27442359,597.57,596.61,0.67407133]
[1745496877074,0.27442359,597.57,596.62,0.67407133]
[1745496877274,0.27442359,597.57,596.63,0.67407133]
[1745496877475,1.27641359,597.58,596.64,0.67407133]
[1745496877677,0.27442681,597.57,596.52,1.687]
[1745496877871,0.27442681,597.57,596.53,0.67420155]
[1745496878071,0.27442681,597.57,596.54,0.67420155]
[1745496878271,0.27442681,597.57,596.55,0.67420155]
[1745496878478,0.27442681,597.56,596.56,0.67420155]
[1745496878676,0.27442681,597.85,596.57,0.67420155]
[1745496878874,0.27442681,597.84,596.58,0.67420155]
[1745496879072,0.27442681,597.85,596.59,0.67420155]
[1745496879278,1.27641359,597.89,596.6,0.67420155]
[1745496879478,0.27440002,597.88,596.61,0.67420155]
[1745496879681,0.27440002,597.88,596.62,0.67420155]
[1745496879877,0.27440002,597.88,596.63,0.67420155]
[1745496880073,0.27440002,597.88,596.64,0.67420155]
[1745496880274,0.27440002,597.99,596.65,0.67420155]
[1745496880474,0.56580971,597.87,596.66,0.67420155]
[1745496880678,0.27440002,597.86,596.52,1.687]
[1745496880874,0.27440002,597.99,596.53,0.6743691]
[1745496881115,0.27440002,597.98,596.54,0.6743691]
[1745496881274,0.27440002,597.98,596.55,0.6743691]
[1745496881579,0.27440002,597.97,596.56,0.6743691]
[1745496881880,0.27439364,597.96,596.57,0.6743691]
[1745496882181,0.27439364,597.95,596.58,0.6743691]
[1745496882380,0.27439364,597.95,596.59,0.6743691]
[1745496882575,0.27439364,597.95,596.6,0.6743691]
[1745496882875,0.29140481,597.96,596.61,0.6743691]
[1745496883077,0.27439251,597.95,596.62,0.6743691]
[1745496883375,0.27439251,597.95,596.63,0.6743691]
[1745496883580,0.27439251,597.95,596.64,0.6743691]
[1745496883777,0.27439251,597.95,596.65,0.6743691]
[1745496883979,0.27439251,597.95,596.66,0.6743691]
[1745496884182,0.27439251,597.95,596.52,2.814]
[1745496884482,0.27439251,597.95,596.53,0.67452707]
[1745496884682,0.27439251,597.95,596.52,2.814]
[1745496884683,0.29140481,597.96,596.54,0.67452707]
[1745496884880,0.27439118,597.95,596.55,0.67452707]
[1745496885084,0.27439118,597.95,596.56,0.67452707]
[1745496885282,0.27439118,598.03,596.57,0.67452707]
[1745496885585,0.27439118,598.02,596.58,0.67452707]
[1745496885784,1.27641359,598.04,596.52,2.814]
[1745496885785,0.27439118,598.01,596.59,0.67452707]
[1745496886080,0.27439118,598.0,596.6,0.67452707]
[1745496886281,0.27439118,597.99,596.61,0.67452707]
[1745496886485,0.27439118,597.99,596.62,0.67452707]
[1745496886684,0.27439118,597.98,596.63,0.67452707]
[1745496886885,0.27439118,597.99,596.64,0.67452707]
[1745496887083,0.27439118,597.98,596.65,0.67452707]
[1745496887284,0.29139627,598.0,596.66,0.67452707]
[1745496887285,1.27641359,597.96,596.66,0.67452707]
[1745496887494,0.27439118,597.95,596.67,0.67452707]
[1745496887684,0.27439118,597.95,596.68,0.67452707]
[1745496887886,0.27439118,597.95,596.69,0.67452707]
[1745496888082,0.27439118,597.95,596.7,0.67452707]
[1745496888387,0.27439118,597.95,596.71,0.67452707]
[1745496888588,0.27439118,597.95,596.72,0.67452707]
[1745496888785,0.27439118,597.95,596.73,0.67452707]
[1745496888984,0.27439118,597.95,596.74,0.67452707]
[1745496889188,0.27439118,597.95,596.75,0.67452707]
[1745496889386,0.27439118,597.95,596.52,2.814]
[1745496889591,0.27439118,597.95,596.53,0.67419342]
[1745496889789,0.27439118,597.95,596.54,0.67419342]
[1745496890090,0.27439118,597.95,596.52,2.814]
[1745496890091,0.27443085,597.94,596.55,0.67419342]
[1745496890290,0.27443085,597.99,596.56,0.67419342]
[1745496890490,0.27443085,597.93,596.52,2.814]
[1745496890690,0.27443085,597.92,596.52,2.814]
[1745496890989,0.27443085,597.91,596.52,2.814]
[1745496891185,0.27443085,597.99,596.52,2.814]
[1745496891389,0.27443085,597.98,596.52,2.814]
[1745496891584,0.29132431,597.96,596.52,2.814]
[1745496891786,0.27443085,597.95,596.53,0.67403079]
[1745496892085,0.27443085,597.95,596.54,0.98178971]
[1745496892287,0.27443085,597.95,596.55,0.98178971]
[1745496892591,0.27443085,597.95,596.56,0.98178971]
[1745496892821,0.27443085,597.95,596.57,0.98178971]
[1745496892988,0.27443085,597.95,596.58,0.67403079]
[1745496893288,0.27443085,597.95,596.59,0.67403079]
[1745496893488,0.29132431,597.96,596.6,0.67403079]
[1745496893686,0.27441948,597.95,596.61,0.67403079]
[1745496893885,0.27441948,597.95,596.62,0.67403079]
[1745496894089,0.27441948,597.95,596.63,0.67403079]
[1745496894290,1.27641359,598.05,596.64,0.67403079]
[1745496894492,0.29129749,597.98,596.65,0.67403079]
[1745496894691,0.27441948,597.97,596.66,0.67403079]
[1745496894888,0.27441948,598.04,596.55,0.29129749]
[1745496895087,0.27441948,598.03,596.56,0.98144265]
[1745496895293,0.27441948,598.02,596.57,0.67368622]
[1745496895591,0.27441948,598.01,596.58,0.67368622]
[1745496895792,0.27441948,598.01,596.59,0.67368622]
[1745496896114,0.29136944,598.02,596.6,0.67368622]
[1745496896292,0.29136944,598.02,596.61,0.67368622]
[1745496896491,0.29136944,598.02,596.62,0.67368622]
[1745496896692,0.27443175,598.01,596.63,0.67368622]
[1745496896893,0.27443175,598.01,596.64,0.67368622]
[1745496897087,0.27443175,598.01,596.65,0.67368622]
[1745496897287,0.27443175,598.01,596.66,0.67368622]
[1745496897487,0.27443175,598.01,596.67,0.67368622]
[1745496897789,0.27443175,598.01,596.68,0.67368622]
[1745496897991,0.27443175,598.01,596.6,1.528]
[1745496898188,0.27443175,598.0,596.61,0.67346743]
[1745496898387,0.27443175,597.99,596.62,0.67346743]
[1745496898592,0.27443175,597.98,596.63,0.67346743]
[1745496898892,0.27443175,597.97,596.64,0.67346743]
[1745496899093,0.27443175,597.97,596.65,0.67346743]
[1745496899295,0.27443175,597.96,596.66,0.67346743]
[1745496899496,0.27443175,597.95,596.67,0.67346743]
[1745496899792,0.27443175,597.94,596.68,0.67346743]
[1745496899989,0.27443175,598.01,596.6,1.528]
[1745496900193,0.27443175,598.0,596.61,0.67337936]
[1745496900390,0.27443175,598.07,596.62,0.67337936]
[1745496900587,0.2913609,598.0,596.63,0.67337936]
[1745496900787,0.27440064,597.99,596.64,0.67337936]
[1745496900991,0.27440064,597.98,596.65,0.67337936]
[1745496901288,1.27641359,598.08,596.66,0.67337936]
[1745496901289,0.27440064,597.97,596.66,0.67337936]
[1745496901493,0.27440064,598.07,596.67,0.67337936]
[1745496901693,0.27440064,598.06,596.68,0.67337936]
[1745496901993,0.27440064,598.05,596.6,1.528]
[1745496902289,0.27440064,598.04,596.61,0.673345]
[1745496902490,0.2913609,598.04,596.62,0.673345]
[1745496902687,0.27440064,598.03,596.63,0.673345]
[1745496902890,0.27440064,598.03,596.64,0.673345]
[1745496903095,0.27440064,598.03,596.65,0.673345]
[1745496903393,0.56572861,598.02,596.66,0.673345]
[1745496903592,0.27440064,598.01,596.67,0.673345]
[1745496903894,0.27440064,598.01,596.6,1.528]
[1745496904089,0.27440064,598.01,596.61,0.67333817]
[1745496904288,0.27440064,598.01,596.6,1.528]
[1745496904289,0.27440064,598.01,596.62,0.67333817]
[1745496904494,0.27440064,598.01,596.63,0.67333817]
[1745496904792,0.27440064,598.01,596.64,0.67333817]
[1745496904992,0.27440064,598.01,596.65,0.67333817]
[1745496905192,0.27440064,598.01,596.66,0.67333817]
[1745496905392,0.27440064,598.01,596.6,1.528]
[1745496905603,0.27440064,598.01,596.61,0.67334871]
[1745496905793,0.27440064,598.01,596.62,0.67334871]
[1745496906094,0.27440064,598.01,596.63,0.67334871]
[1745496906289,0.27440064,598.29,596.64,0.67334871]
[1745496906594,0.27440064,598.28,596.65,0.67334871]
[1745496906789,0.27440064,598.27,596.66,0.67334871]
[1745496906991,0.27440064,598.26,596.6,1.528]
[1745496907189,0.27440064,598.25,596.61,0.67335463]
[1745496907393,0.2913548,598.25,596.62,0.67335463]
[1745496907588,0.27442898,598.24,596.63,0.67335463]
[1745496907805,0.27442898,598.24,596.64,0.67335463]
[1745496908094,0.27442898,598.23,596.6,1.528]
[1745496908288,0.27442898,598.22,596.61,0.67338359]
[1745496908488,0.27442898,598.21,596.62,0.67338359]
[1745496908791,0.27442898,598.2,596.63,0.67338359]
[1745496908992,0.27442898,598.19,596.64,0.67338359]
[1745496909192,1.27641359,598.36,596.6,1.528]
[1745496909392,0.29135114,598.19,596.61,0.67341093]
[1745496909593,1.27641359,598.36,596.62,0.67341093]
[1745496909790,0.27442376,598.35,596.63,0.67341093]
[1745496909988,0.27442376,598.35,596.64,0.67341093]
[1745496910289,0.27442376,598.34,596.6,1.528]
[1745496910489,0.56577368,598.34,596.61,0.67343954]
[1745496910693,0.27442376,598.33,596.62,0.67343954]
[1745496910889,0.27442376,598.32,596.63,0.67342924]
[1745496911090,0.29134992,598.34,596.61,1.262]
[1745496911295,0.27443061,598.33,596.62,0.67343045]
[1745496911491,0.27443061,598.32,596.63,0.67343045]
[1745496911690,0.27443061,598.31,596.61,1.262]
[1745496911896,1.27641359,598.14,596.62,0.67344701]
[1745496912103,0.27443061,598.13,596.63,0.67344737]
[1745496912297,0.27443061,598.12,596.61,1.262]
[1745496912497,0.27443061,598.11,596.61,1.262]
[1745496912693,0.27443061,598.1,596.61,1.262]
[1745496912893,0.29137798,598.13,596.61,1.262]
[1745496913099,0.27441508,598.12,596.61,1.262]
[1745496913296,0.27441508,598.11,596.61,1.262]
[1745496913596,0.27441508,598.1,596.61,1.262]
[1745496913797,0.27441508,598.09,596.61,1.262]
[1745496913999,0.27441508,598.08,596.61,1.262]
[1745496914298,0.27441508,598.07,596.61,1.262]
[1745496914499,0.27441508,598.06,596.61,1.262]
[1745496914700,1.27641359,598.04,596.61,1.262]
[1745496914894,0.27439403,598.03,596.61,1.262]
[1745496915096,0.27439403,598.02,596.61,1.262]
[1745496915294,0.27439403,598.01,596.61,1.262]
[1745496915499,0.27439403,598.0,596.61,1.262]
[1745496915795,0.27439403,597.99,596.62,0.67349522]
[1745496915995,0.27439403,597.98,596.61,1.262]
[1745496916241,0.27439403,597.97,596.62,0.67347664]
[1745496916400,1.27641359,598.04,596.61,1.262]
[1745496916595,0.29139139,597.97,596.61,1.262]
[1745496916900,1.5508086,597.96,596.61,1.262]
[1745496917100,0.27439501,597.95,596.61,1.262]
[1745496917300,0.27439501,597.94,596.61,1.262]
[1745496917601,0.27439501,597.93,596.61,1.262]
[1745496917899,0.27439501,597.92,596.61,1.262]
[1745496918095,0.27439501,597.91,596.61,1.262]
[1745496918327,0.27439694,597.9,596.61,1.262]
[1745496918497,0.27439694,597.89,596.61,1.262]
[1745496918694,0.27439694,597.88,596.62,1.243]
[1745496919002,0.29140115,597.91,596.62,1.243]
[1745496919003,0.27439694,597.87,596.62,1.243]
[1745496919299,0.27439694,597.86,596.62,1.243]
[1745496919499,0.27439694,597.85,596.62,1.243]
[1745496919702,0.27439694,597.84,596.62,1.243]
[1745496919901,0.27439694,597.83,596.62,1.243]
[1745496920094,0.27439694,597.88,596.62,1.243]
[1745496920294,0.27439694,597.87,596.62,1.243]
[1745496920596,0.27439694,597.86,596.62,1.243]
[1745496920795,0.27439694,597.85,596.62,1.243]
[1745496921000,0.27439694,597.84,596.62,1.243]
[1745496921208,0.27439694,597.83,596.62,1.243]
[1745496921401,0.27439694,597.82,596.62,1.243]
[1745496921599,0.27439694,597.84,596.63,0.67345214]
[1745496921797,0.27439694,597.84,596.64,0.67345214]
[1745496922099,0.27439694,597.84,596.65,0.67345214]
[1745496922300,0.27439694,597.84,596.66,0.67345214]
[1745496922500,0.27439694,597.84,596.67,0.67345214]
[1745496922701,0.27439694,597.84,596.68,0.67345214]
[1745496923002,0.27439694,597.84,596.69,0.67345214]
[1745496923202,0.27439694,597.84,596.7,0.67345214]
[1745496923497,0.27439694,597.84,596.71,0.67345214]
[1745496923701,1.27641359,597.85,596.72,0.67345214]
[1745496923898,0.27455279,597.84,596.73,0.67345214]
[1745496924102,0.27455279,598.57,596.74,0.67345214]
[1745496924298,0.27455279,598.56,596.75,0.67345214]
[1745496924506,0.27455279,598.55,596.76,0.67345214]
[1745496924806,0.27455279,598.54,596.77,0.67345214]
[1745496925002,0.27455279,598.53,596.78,0.98107231]
[1745496925201,0.27455279,598.52,596.79,0.67345214]
[1745496925398,0.27455279,598.51,596.8,0.67345214]
[1745496925599,0.27455279,598.5,596.81,0.67345214]
[1745496925798,0.27455279,598.49,596.82,0.67345214]
[1745496925997,0.27455279,598.48,596.83,0.67345214]
[1745496926202,0.27455279,598.47,596.84,0.67345214]
[1745496926403,0.27455279,598.46,596.85,0.67345214]
[1745496926704,0.27455279,598.45,596.86,0.97902421]
[1745496926899,0.27455279,598.44,596.87,0.97902421]
[1745496927105,0.27455279,598.43,596.88,0.97902421]
[1745496927398,0.27455279,598.42,596.89,0.97902421]
[1745496927607,0.27455279,598.41,596.9,0.97902421]
[1745496927800,0.27455279,598.4,596.91,0.97902421]
[1745496928104,0.27455279,598.39,596.92,0.97902421]
[1745496928303,0.27455279,598.38,596.93,0.97902421]
[1745496928504,0.27455279,598.37,596.94,0.97902421]
[1745496928703,0.27455279,598.36,596.95,0.97902421]
[1745496928918,0.27455279,598.35,596.96,0.97902421]
[1745496929100,1.27641359,598.54,596.96,0.97902421]
[1745496929101,0.27455279,598.34,596.97,0.97902421]
[1745496929399,0.27455279,598.33,596.98,0.97902421]
[1745496929605,0.27455279,598.41,596.99,0.67143691]
[1745496929806,0.27455279,598.32,597.0,0.67143691]
[1745496930006,0.27455279,598.31,596.96,1.274]
[1745496930202,0.2911537,598.42,596.97,0.66998047]
[1745496930401,0.27460227,598.41,596.98,0.66998047]
[1745496930602,0.27460227,598.41,596.99,0.66998047]
[1745496930802,0.27460227,598.41,596.96,1.274]
[1745496931041,0.2911537,598.42,596.97,0.66958169]
[1745496931202,0.2911537,598.42,596.98,0.66958169]
[1745496931401,0.2911537,598.42,596.96,1.274]
[1745496931604,0.2911537,598.42,596.97,0.66927668]
[1745496931802,0.27454755,598.41,596.98,0.66924745]
[1745496932002,0.27454755,598.41,596.96,1.274]
[1745496932205,0.27454755,598.41,596.97,0.66924745]
[1745496932407,0.27454755,598.41,596.96,1.274]
[1745496932603,0.27454755,598.41,596.97,0.30753679]
[1745496933408,0.27454755,598.4,596.97,0.30753679]
[1745496933605,0.27454755,598.77,596.97,0.30753679]
[1745496933805,1.27641359,598.78,596.96,1.274]
[1745496934008,0.27455049,598.77,596.97,0.30753604]
[1745496934210,1.27641359,598.78,596.97,0.30753604]
[1745496934211,0.27455049,598.76,596.97,0.30753604]
[1745496934409,0.27455049,598.75,596.97,0.30753604]
[1745496934612,0.27455049,598.74,596.98,1.695]
[1745496934811,0.27455049,598.73,596.98,1.695]
[1745496935011,0.27455049,598.72,596.98,1.695]
[1745496935229,0.27455049,598.71,596.98,1.695]
[1745496935405,0.27455049,598.7,596.98,1.695]
[1745496935609,0.27455578,598.69,596.98,1.695]
[1745496935909,0.27455578,598.68,596.98,1.695]
[1745496936212,0.27455578,598.67,596.98,1.695]
[1745496936507,0.27455578,598.66,596.98,1.695]
[1745496936712,0.27455578,598.65,596.98,1.695]
[1745496937011,0.27455578,598.64,596.98,1.695]
[1745496937212,0.27455578,598.63,596.98,1.695]
[1745496937410,0.27455578,598.62,596.98,1.695]
[1745496937610,0.27455578,598.61,596.98,1.695]
[1745496937808,0.29111594,598.63,596.98,1.695]
[1745496937809,0.27455578,598.6,596.98,1.695]
[1745496938008,0.27455578,598.59,596.98,1.695]
[1745496938213,0.27455578,598.58,596.98,1.695]
[1745496938507,0.27455578,598.57,596.98,1.695]
[1745496938708,0.27455578,598.56,596.98,1.695]
[1745496939011,0.27461066,598.55,596.98,1.695]
[1745496939312,0.27461066,598.54,596.98,1.695]
[1745496939508,0.27461066,598.53,596.99,0.30754314]
[1745496939705,0.27461066,598.52,596.99,0.30754314]
[1745496939908,0.27461066,598.51,596.99,0.30754314]
[1745496940108,0.27461066,598.5,596.99,0.30754314]
[1745496940311,0.27461066,598.49,596.99,0.30754314]
[1745496940510,0.27461066,598.48,596.99,0.30754314]
[1745496940913,0.27461066,598.47,596.99,0.30754314]
[1745496941113,0.27461066,598.46,596.99,0.30754314]
[1745496941315,0.27461066,598.45,596.99,0.30754314]
[1745496941533,0.27461066,598.44,596.99,0.30754314]
[1745496941714,0.27461066,598.43,596.99,0.30754314]
[1745496942008,0.27461066,598.42,596.98,1.695]
[1745496942213,0.2911062,598.5,596.98,1.695]
[1745496942214,0.27461066,598.49,596.99,0.66726334]
[1745496942413,0.27461066,598.48,597.0,0.66726334]
[1745496942609,0.27461066,598.49,597.01,0.66726334]
[1745496942814,0.27461066,598.47,597.02,0.66726334]
[1745496943012,0.27461066,598.46,597.03,0.66726334]
[1745496943215,0.27461066,598.49,597.04,0.66726334]
[1745496943416,0.27461066,598.48,596.98,1.695]
[1745496943716,0.2911062,598.5,596.99,0.66675302]
[1745496943915,0.27486123,598.49,597.0,0.66675302]
[1745496944117,0.27486123,598.49,597.01,0.66675302]
[1745496944417,0.27486123,598.49,597.02,0.66675302]
[1745496945311,0.27486123,598.92,597.02,0.66675302]
[1745496945514,0.29106968,598.55,597.01,1.222]
[1745496945716,0.27486123,598.54,597.01,1.222]
[1745496946215,0.27486123,598.53,597.01,1.222]
[1745496946411,0.27486123,598.52,597.01,1.222]
[1745496946715,0.27486123,598.51,597.02,0.66624491]
[1745496946914,1.27641359,599.6,597.01,1.222]
[1745496947112,0.27484584,599.59,597.01,1.222]
[1745496947311,0.27484584,599.58,597.01,1.222]
[1745496947612,0.27484584,599.57,597.01,1.222]
[1745496947811,0.27484584,599.56,597.01,1.222]
[1745496948310,0.27484584,599.55,597.02,0.66609326]
[1745496948512,0.5658352,599.55,597.01,1.222]
[1745496948711,0.27484584,599.54,597.02,0.66592413]
[1745496949011,0.27484584,599.53,597.01,1.222]
[1745496949211,0.27484584,599.52,597.02,0.66592413]
[1745496949410,0.27484584,599.51,597.03,0.66592076]
[1745496949612,0.27484584,599.5,597.04,0.66574218]
[1745496949814,0.27484584,599.49,597.05,0.66574218]
[1745496950014,0.29098936,599.55,597.01,1.222]
[1745496950214,0.2748313,599.54,597.02,0.97317737]
[1745496950414,0.2748313,599.53,597.03,0.97317737]
[1745496950612,0.2748313,599.52,597.04,0.97317737]
[1745496950812,0.2748313,599.51,597.05,0.30744253]
[1745496951015,0.2748313,599.5,597.02,0.30744253]
[1745496951215,0.2748313,599.49,597.03,0.97300663]
[1745496951516,0.2748313,599.48,597.04,0.97300663]
[1745496951817,0.2748313,599.47,597.05,0.30744253]
[1745496952017,0.2748313,599.46,597.02,0.30744253]
[1745496952216,0.2748313,599.45,597.03,0.66543459]
[1745496952417,0.2748313,599.44,597.04,0.30744253]
[1745496952613,0.2748313,599.43,597.03,0.30744253]
[1745496952917,0.2748313,599.42,597.04,0.30744253]
[1745496953216,0.2748313,599.41,597.05,0.30744253]
[1745496953417,0.2748313,599.4,597.06,0.30744253]
[1745496953617,0.2748313,599.39,597.03,0.30744253]
[1745496953817,0.2748313,599.38,597.04,0.97260271]
[1745496954019,0.2748313,599.37,597.05,0.30744253]
[1745496954219,0.2748313,599.36,597.03,0.30744253]
[1745496954420,0.2748313,599.35,597.04,0.97260038]
[1745496954721,0.2748313,599.34,597.05,0.30744253]
[1745496954914,0.2748313,599.33,597.03,0.30744253]
[1745496955114,0.2748313,599.32,597.04,0.30744253]
[1745496955417,0.2748313,599.31,597.05,0.30744253]
[1745496955612,0.2748313,599.3,597.03,0.30744253]
[1745496955814,0.2748313,599.29,597.04,0.30744253]
[1745496956019,0.2748313,599.28,597.03,0.30744253]
[1745496956215,0.2748313,599.28,597.02,1.43697963]
[1745496956216,0.2748313,599.27,597.04,0.30744253]
[1745496956423,0.2748313,599.26,597.05,0.30744253]
[1745496956715,0.2748313,599.25,597.06,0.30744253]
[1745496956919,0.2748313,599.24,597.03,0.30744253]
[1745496957116,0.2748313,599.23,597.04,0.30744253]
[1745496957458,0.2748313,599.22,597.03,0.30744253]
[1745496957716,0.2748313,599.21,597.04,0.30744253]
[1745496957915,0.29099788,599.22,597.04,0.30744253]
[1745496957916,1.27641359,598.97,597.04,0.30744253]
[1745496958119,0.2748313,598.96,597.04,0.30744253]
[1745496958420,0.2748313,598.95,597.04,0.30744253]
[1745496958622,0.2748313,598.94,597.04,0.30744253]
[1745496958819,0.2748313,598.93,597.04,1.87544253]
[1745496959016,0.2748313,598.92,597.05,0.30744253]
[1745496959219,0.2748313,598.91,597.05,0.30744253]
[1745496959416,1.27641359,598.97,597.04,1.568]
[1745496959620,0.27483453,598.96,597.05,0.3074503]
[1745496959818,0.27483453,598.95,597.05,0.3074503]
[1745496960022,0.27483453,598.94,597.05,0.3074503]
[1745496960222,0.27483453,598.93,597.05,0.3074503]
[1745496960422,0.27483453,598.92,597.05,0.3074503]
[1745496960622,0.27483453,598.91,597.05,0.3074503]
[1745496960923,1.27641359,598.85,597.05,0.3074503]
[1745496961120,0.27483453,598.84,597.05,0.3074503]
[1745496961319,0.27483453,598.83,597.05,0.3074503]
[1745496961519,0.27483453,598.82,597.05,0.3074503]
[1745496961718,0.27483453,598.81,597.05,0.3074503]
[1745496961918,0.27483453,598.8,597.05,0.3074503]
[1745496962123,0.27483453,598.79,597.05,0.3074503]
[1745496962323,0.27483453,598.78,597.05,0.3074503]
[1745496962618,0.27483453,598.77,597.05,0.3074503]
[1745496962818,0.27483453,598.76,597.05,0.3074503]
[1745496963021,0.27483453,598.75,597.05,0.3074503]
[1745496963217,0.27483453,598.74,597.05,0.3074503]
[1745496963420,0.27483453,598.73,597.05,0.3074503]
[1745496963619,0.29107212,598.74,597.04,1.85907212]
[1745496963822,0.27495327,598.73,597.05,0.30745259]
[1745496964022,0.29107212,598.74,597.05,0.30745259]
[1745496964023,0.27495327,598.72,597.05,0.30745259]
[1745496964326,1.27641359,598.59,597.05,0.30745259]
[1745496964618,0.27495327,598.58,597.05,0.30745259]
[1745496966424,0.27495327,598.58,597.05,1.52945259]
[1745496966425,0.29110377,598.57,597.05,1.52945259]
[1745496966626,0.27495327,598.56,597.06,0.30745259]
[1745496968225,0.29110377,598.57,597.05,1.222]
[1745496968418,0.27494089,598.56,597.06,0.30744858]
[1745496969326,0.27494089,598.81,597.06,0.30744858]
[1745496969527,0.27494089,598.8,597.06,0.30744858]
[1745496969728,0.27494089,598.79,597.06,0.30744858]
[1745496969927,0.27494669,598.78,597.07,0.30744066]
[1745496970123,0.27494669,598.77,597.06,0.30744066]
[1745496970328,0.27494669,598.76,597.06,0.30744066]
[1745496970529,0.27494669,598.75,597.06,0.30744066]
[1745496970725,0.27494669,598.74,597.07,0.66545453]
[1745496970925,0.27494669,598.73,597.08,0.30744066]
[1745496971228,0.27494669,598.72,597.09,0.30744066]
[1745496971429,0.29106238,598.77,597.05,1.51306238]
[1745496971630,0.27494886,598.76,597.06,0.97306449]
[1745496971829,0.27494886,598.75,597.07,0.97306449]
[1745496972024,0.27494886,598.74,597.08,0.30743248]
[1745496972327,0.27494886,598.73,597.09,0.30743248]
[1745496972528,0.27494886,598.72,597.1,0.30743248]
[1745496972728,0.27494886,598.71,597.11,0.30743248]
[1745496972929,0.29106238,598.77,597.05,1.51306238]
[1745496973227,0.27493789,598.76,597.06,0.97329948]
[1745496973429,0.27493789,598.75,597.07,0.30743994]
[1745496973627,0.27493789,598.74,597.08,0.30743994]
[1745496973829,0.27493789,598.73,597.09,0.30743994]
[1745496974128,0.27493789,598.72,597.1,0.30743994]
[1745496974329,0.27493789,598.71,597.06,0.30743994]
[1745496974525,0.27493789,598.7,597.07,0.30743994]
[1745496974730,1.27641359,598.5,597.06,0.30743994]
[1745496974929,1.27641359,598.5,597.07,0.66646125]
[1745496975132,1.27641359,598.5,597.05,1.222]
[1745496975431,1.27641359,598.5,597.06,0.66645696]
[1745496975632,0.2749983,598.49,597.07,0.66645696]
[1745496976326,0.2749983,598.48,597.08,0.30744115]
[1745496976730,0.2749983,598.47,597.09,0.30744115]
[1745496976932,0.2749983,598.49,597.1,0.66717361]
[1745496977131,0.2749983,598.48,597.11,0.97461476]
[1745496977332,0.2749983,598.47,597.12,0.97461476]
[1745496977546,0.2749983,598.46,597.13,0.97461476]
[1745496977732,1.27641359,598.49,597.06,0.2910989]
[1745496977930,0.27504601,598.48,597.07,0.97497424]
[1745496978130,0.27504601,598.48,597.08,0.30744357]
[1745496978329,0.27504601,598.48,597.09,0.66752249]
[1745496978535,0.27504601,598.48,597.1,0.97496606]
[1745496978733,0.27504601,598.48,597.11,0.97496606]
[1745496978930,0.27504601,598.48,597.12,0.97496606]
[1745496979134,0.27504601,598.48,597.13,0.97496606]
[1745496979334,0.27504601,598.48,597.02,1.146]
[1745496979335,1.27641359,598.49,597.14,0.66752249]
[1745496979537,1.27641359,598.49,597.15,0.66752249]
[1745496979538,0.27504601,598.48,597.15,0.66752249]
[1745496979934,0.27504601,598.65,597.15,0.66752249]
[1745496980127,0.27504601,598.64,597.15,0.66752249]
[1745496980330,0.27504601,598.63,597.15,0.66752249]
[1745496980829,0.27504601,598.62,597.15,0.66752249]
[1745496981133,0.27504601,598.61,597.15,0.66752249]
[1745496981330,0.27504601,598.65,597.15,0.66752249]
[1745496981534,0.27504601,598.65,597.15,1.83752249]